Cogmind - Beta 13 @@@ ROGUE MODE // 2024.04.21 @ 09:42:06 Player: Zach Petti Result: Destroyed by 80-6VA(M) with Barrage Gun Performance ------------- Evolutions (1) 500 Regions Visited (5) 1000 Robots Destroyed (33) 165 Value Destroyed (896) 896 Prototype IDs (4) 80 Alien Tech Used (0) 0 Bonus (679) 679 TOTAL SCORE: 3320 Bonus ------- Follower Combat Kills 117 Met Imprinter 300 Was Imprinted 300 Friendly Fire -38 Cogmind --------- Core Integrity 0/400 Matter 274/300 Energy 125/125 System Corruption 0% Temperature Cool (11) Movement Rolling (90) Location -6/Proximity Caves Parts ------- > --- POWER (2) -------- Light Ion Engine > --- PROPULSION (3) --- Wheel Compact Wheel Armored Wheel > --- UTILITY (2) ------ Medium Storage Unit Advanced Targeting Computer > --- WEAPON (2) ------- Barrage Gun Ripper > --- INVENTORY (10) --- Aluminum Leg Aluminum Leg Improved Heat Sink Improved Heat Sink Small Storage Unit Relay Coupler [Programmer] (80) Improved EM Pulse Cannon Slug Cannon Peak State ------------ > --- POWER ------------ Light Ion Engine Heavy Ion Engine > --- PROPULSION ------- Wheel Compact Wheel Armored Wheel > --- UTILITY ---------- Medium Storage Unit Advanced Targeting Computer > --- WEAPON ----------- Beam Cannon Barrage Gun > --- INVENTORY -------- Aluminum Leg Aluminum Leg Improved Heat Sink Improved Heat Sink Small Storage Unit Relay Coupler [Programmer] Improved EM Pulse Cannon Assault Rifle Rocket Launcher CR-A16's Pointy Stick [Rating: 18] Favorites ----------- Power Heavy Ion Engine Engine Heavy Ion Engine Power Core Light Nuclear Core Propulsion Wheel Wheel Wheel Utility Medium Storage Unit Device Improved Heat Sink Storage Medium Storage Unit Processor Advanced Targeting Computer Weapon Beam Cannon Energy Gun Beam Rifle Energy Cannon Beam Cannon Ballistic Gun Assault Rifle Launcher Grenade Launcher Slashing Weapon Ripper Build | -11 -10 -9 -9 -7 -6 ------- Run | Yrd Mat Mat Min Zio Pro Slots Evolved 2 | . . 2 . . . Power 1 | . . 1 . . . Propulsion 1 | . . 1 . . . Utility . | . . . . . . Weapon . | . . . . . . Parts Attached 34 | 6 9 10 6 2 1 Power 10 | 1 3 5 1 . . Engine 9 | 1 2 5 1 . . Core 1 | . 1 . . . . Reactor . | . . . . . . Propulsion 7 | 2 1 2 2 . . Treads . | . . . . . . Leg . | . . . . . . Wheel 7 | 2 1 2 2 . . Hover . | . . . . . . Flight . | . . . . . . Utility 7 | 1 2 2 1 1 . Device 3 | . 2 1 . . . Storage 2 | 1 . 1 . . . Processor 2 | . . . 1 1 . Hackware . | . . . . . . Protection . | . . . . . . Artifact . | . . . . . . Weapon 10 | 2 3 1 2 1 1 Energy Gun 1 | . . 1 . . . Energy Cannon 2 | . 2 . . . . Ballistic Gun 5 | 2 . . 2 1 . Ballistic Cannon . | . . . . . . Launcher 1 | . 1 . . . . Special Weapon . | . . . . . . Impact Weapon . | . . . . . . Slashing Weapon 1 | . . . . . 1 Piercing Weapon . | . . . . . . Special Melee Weapon . | . . . . . . Unidentified Prototypes 1 | . . 1 . . . Parts Lost 8 | . 2 5 1 . . Power 3 | . 1 2 . . . Propulsion 3 | . . 2 1 . . Utility . | . . . . . . Weapon 2 | . 1 1 . . . Highest Loss Streak 5 | . 2 5 1 . . To Critical Strikes . | . . . . . . Average Slot Usage (%) 97 | . 95 90 99 100 94 Engine 18 | . 13 13 22 22 22 Core 1 | . . 5 . . . Wheel 30 | . 28 27 32 33 33 Device 6 | . 10 11 11 . . Storage 11 | . 14 11 11 11 11 Processor 4 | . . . . 11 11 Energy Cannon 11 | . 10 16 11 11 5 Ballistic Gun 8 | . 9 . 11 11 11 Launcher 1 | . 8 . . . . Naked Turns . | . . . . . . Heaviest Build 35 | 14 18 35 34 27 27 Greatest Support 38 | 20 26 36 38 38 38 Greatest Overweight (x) 1 | . . 1 1 . . Average Overweight (x) . | . . . . . . Largest Inventory Capacity 10 | 8 8 10 10 10 10 Average Capacity 9 | 7 8 9 10 10 10 Most Carried 10 | 5 8 9 10 10 9 Average Carried 8 | 3 6 7 8 9 8 Final Capacity 10 | 8 8 10 10 10 10 Final Carried 9 | 4 8 8 9 9 8 Class Distribution -------------------- 100% | Mutant Dominant Class ---------------- Mutant | -10/Materials Mutant | -9/Materials Mutant | -9/Mines Mutant | -7/Zion Mutant | -6/Proximity Caves Resources | -11 -10 -9 -9 -7 -6 ----------- Run | Yrd Mat Mat Min Zio Pro Matter Collected 751 | 212 276 103 116 30 14 Remotely . | . . . . . . Salvage Created 1223 | . 382 487 354 . . Parts 68 | . 24 27 17 . . Haulers Intercepted . | . . . . . . Recyclers Shooed 3 | . 1 1 1 . . Parts Field Recycled . | . . . . . . Retrieved Matter . | . . . . . . Parts Self-Destructed 4 | . . . . . 4 Prevented . | . . . . . . Kills | -11 -10 -9 -9 -7 -6 ------- Run | Yrd Mat Mat Min Zio Pro Combat Hostiles Destroyed 25 | . 10 7 8 . . Guns 10 | . 3 2 5 . . Cannons 13 | . 5 5 3 . . AOE 2 | . 2 . . . . Classes Destroyed 8 | . 5 3 . . . Worker 2 | . 1 1 . . . Recycler 2 | . . 1 1 . . Mechanic 1 | . 1 . . . . Operator 1 | . . 1 . . . Watcher 2 | . 1 1 . . . Swarmer 7 | . 3 . 4 . . Grunt 14 | . 7 3 4 . . Sentry 4 | . . 4 . . . Best Kill Streak 5 | . 5 5 5 . . Combat Bots Only 4 | . 3 4 4 . . Max Kills in Single Turn 2 | . 2 1 1 . . Gunslinging . | . . . . . . Exploded 2 | . 2 . . . . Melee . | . . . . . . Uniques/NPCs Destroyed . | . . . . . . Combat | -11 -10 -9 -9 -7 -6 -------- Run | Yrd Mat Mat Min Zio Pro Hostile Shots Fired 149 | . 50 56 36 . 7 Missed 47 | . 16 18 10 . 3 Damage Taken 1448 | . 400 602 279 . 167 Core 481 | . 72 204 89 . 116 Absorbed by Shields . | . . . . . . Regen/Repaired (Parts) 329 | . 9 . . 320 . Core Remaining (%) 85 | 100 71 . . . . Volleys Fired 96 | . 41 27 23 . 5 Largest 2 | . 2 2 2 . 2 Hottest 120 | . 120 120 80 . 88 Shots Fired 162 | . 58 50 46 . 8 Gun 71 | . 28 15 23 . 5 Cannon 87 | . 26 35 23 . 3 Launcher 4 | . 4 . . . . Special . | . . . . . . Kinetic 56 | . 28 . 23 . 5 Thermal 102 | . 26 50 23 . 3 Explosive 4 | . 4 . . . . Electromagnetic . | . . . . . . Robot Hit Streak 7 | . 5 7 4 . 4 Robot Miss Streak 4 | . 3 3 4 . 3 Penetration Max . | . . . . . . Secondary Targets . | . . . . . . Shots Hit Robots 87 | . 28 31 23 . 5 Core Hits 52 | . 18 17 13 . 4 Critical Kills . | . . . . . . Critical Parts Destroyed . | . . . . . . Critical Strikes 3 | . . 3 . . . Burn 3 | . . 3 . . . Melee Attacks 1 | . . . . . 1 Impact . | . . . . . . Slashing 1 | . . . . . 1 Piercing . | . . . . . . Sneak Attacks . | . . . . . . Combat Hostiles . | . . . . . . Follow-up Attacks . | . . . . . . Damage Inflicted 1783 | . 760 550 385 . 88 Guns 603 | . 221 145 166 . 71 Cannons 876 | . 259 405 195 . 17 Explosions 280 | . 280 . . . . Melee . | . . . . . . Ramming 24 | . . . 24 . . Kinetic 458 | . 221 . 166 . 71 Thermal 1021 | . 259 550 195 . 17 Explosive 280 | . 280 . . . . Electromagnetic . | . . . . . . Impact . | . . . . . . Slashing . | . . . . . . Piercing . | . . . . . . Highest Corruption . | . . . . . . Average Corruption . | . . . . . . Corruption Purged . | . . . . . . Corruption Blocked . | . . . . . . Overload Shots . | . . . . . . Overflow Damage 16 | . 16 . . . . Projectiles . | . . . . . . Explosions 16 | . 16 . . . . Melee . | . . . . . . Knockbacks . | . . . . . . Impact . | . . . . . . Kinetic . | . . . . . . Secondary . | . . . . . . Self-Inflicted Damage 12 | . . . 12 . . Shots . | . . . . . . Rammed 1 | . . . 1 . . Targets Rammed 1 | . . . 1 . . Kicked . | . . . . . . Crushed . | . . . . . . Highest Temperature 511 | . 327 511 45 . 117 Average Temperature 131 | . 97 186 22 . 55 Received Heat Transfer 606 | . 240 240 105 . 21 Effects 14 | . 4 10 . . . Shutdowns 4 | . . 4 . . . Energy Bleed 5 | . . 5 . . . Interference 3 | . 3 . . . . Matter Decay 1 | . 1 . . . . Damage (core) 1 | . . 1 . . . Siege Activations . | . . . . . . Robots Corrupted . | . . . . . . Combat Hostiles . | . . . . . . Parts Fried . | . . . . . . Impact Corruptions . | . . . . . . Robots Melted . | . . . . . . Combat Hostiles . | . . . . . . Parts Melted 4 | . . 4 . . . Heat Transferred 2442 | . 555 1443 407 . 37 Parts Sabotaged . | . . . . . . Parts Stolen . | . . . . . . Parts Stripped . | . . . . . . Power Chain Reactions . | . . . . . . Alert | -11 -10 -9 -9 -7 -6 ------- Run | Yrd Mat Mat Min Zio Pro Peak Influence 318 | . 288 268 318 . . Initial 50 | . . 50 28 . . Average 152 | . 140 162 202 . . Maximum Alert Level 1 | . 1 1 1 . . Low Security (%) 69 | 100 78 67 54 . . Level 1 30 | . 21 32 45 . . Level 2 . | . . . . . . Level 3 . | . . . . . . Level 4 . | . . . . . . Level 5 . | . . . . . . High Security . | . . . . . . Max Security . | . . . . . . Squads Dispatched 2 | . 2 . . . . Investigation 1 | . 1 . . . . Extermination . | . . . . . . Reinforcement 1 | . 1 . . . . Assault . | . . . . . . Garrison . | . . . . . . Intercept . | . . . . . . Searches Triggered . | . . . . . . Construction Impeded . | . . . . . . Haulers Reinforced . | . . . . . . Active Scanning Responses . | . . . . . . Cargo Convoy Interrupts . | . . . . . . Stealth | -11 -10 -9 -9 -7 -6 --------- Run | Yrd Mat Mat Min Zio Pro Distress Signals 2 | . 2 . . . . Communications Jammed . | . . . . . . Distress Signals . | . . . . . . Times Spotted 52 | . 20 14 10 . 8 Peak Tracking Total 5 | . 4 5 4 . 4 Tactical Retreats 4 | . 1 1 2 . . Traps | -11 -10 -9 -9 -7 -6 ------- Run | Yrd Mat Mat Min Zio Pro Traps Triggered 3 | . 1 2 . . . Indirectly . | . . . . . . Trap Hack Attempts . | . . . . . . Triggered . | . . . . . . Disarmed . | . . . . . . Reprogrammed . | . . . . . . Reused . | . . . . . . Traps Extracted . | . . . . . . Installed . | . . . . . . Triggered . | . . . . . . Machines | -11 -10 -9 -9 -7 -6 ---------- Run | Yrd Mat Mat Min Zio Pro Machines Disabled 3 | . . . 3 . . Max in Single Turn 2 | . . . 2 . . Machines Repaired . | . . . . . . Machines Dismantled . | . . . . . . Machines Sabotaged . | . . . . . . Overloaded Fab Kills . | . . . . . . Hacking | -11 -10 -9 -9 -7 -6 --------- Run | Yrd Mat Mat Min Zio Pro Machines Accessed 4 | . 3 1 . . . Terminals 3 | . 2 1 . . . Fabricators . | . . . . . . Repair Stations 1 | . 1 . . . . Recycling Units . | . . . . . . Scanalyzers . | . . . . . . Garrison Access . | . . . . . . Total Hacks 6 | . 4 2 . . . Successful 6 | . 4 2 . . . Failed . | . . . . . . Catastrophic . | . . . . . . Database Lockouts . | . . . . . . Manual . | . . . . . . Terminals 4 | . 2 2 . . . Fabricators . | . . . . . . Repair Stations 2 | . 2 . . . . Recycling Units . | . . . . . . Scanalyzers . | . . . . . . Garrison Access . | . . . . . . Terminal Hacks 4 | . 2 2 . . . Prototype ID Bank 1 | . 1 . . . . Alert Level 2 | . 1 1 . . . Dispatch Records 1 | . . 1 . . . Fabricator Hacks . | . . . . . . Repair Station Hacks 2 | . 2 . . . . Scan Component 1 | . 1 . . . . Repair 1 | . 1 . . . . Recycling Unit Hacks . | . . . . . . Scanalyzer . | . . . . . . Garrison Access Hacks . | . . . . . . Unauthorized Hacks . | . . . . . . Terminals . | . . . . . . Fabricators . | . . . . . . Repair Stations . | . . . . . . Recycling Units . | . . . . . . Scanalyzers . | . . . . . . Garrison Access . | . . . . . . Data Cores Recovered 1 | . . 1 . . . Used . | . . . . . . Hacking Detections 2 | . 1 1 . . . Full Trace Events . | . . . . . . Feedback Events . | . . . . . . Feedback Blocked . | . . . . . . Robot Schematics Acquired 3 | . . . . 3 . Robots Built . | . . . . . . Authchips . | . . . . . . Time . | . . . . . . Total Robot Build Rating . | . . . . . . Part Schematics Acquired 15 | . . . . 15 . Parts Built . | . . . . . . Authchips . | . . . . . . Time . | . . . . . . Total Part Build Rating . | . . . . . . Parts Repaired 1 | . 1 . . . . Time 26 | . 26 . . . . Parts Recycled . | . . . . . . Recycled Matter . | . . . . . . Retrieved Matter . | . . . . . . Retrieved Components . | . . . . . . Parts Scanalyzed . | . . . . . . Part Schematics Acquired . | . . . . . . Parts Damaged . | . . . . . . Bothacking | -11 -10 -9 -9 -7 -6 ------------ Run | Yrd Mat Mat Min Zio Pro Used RIF Installer . | . . . . . . Robots Hacked . | . . . . . . Non-combat . | . . . . . . Combat . | . . . . . . Robot Hacks Applied . | . . . . . . Relay Couplers Released . | . . . . . . Fabnet Peak Effective % . | . . . . . . Robots Rewired . | . . . . . . Allies Hacked . | . . . . . . Hacks Repelled . | . . . . . . Allies | -11 -10 -9 -9 -7 -6 -------- Run | Yrd Mat Mat Min Zio Pro Total Allies 7 | . . . 3 4 . Largest Group 4 | . . . 3 4 4 Highest-Rated Group 156 | . . . 40 156 156 Highest-Rated Ally 40 | . . . 16 40 40 Total Orders . | . . . . . . Ally Attacks 11 | . . . . . 11 Total Damage 554 | . . . . . 554 Kills 5 | . . . . . 5 Allies Corrupted . | . . . . . . Allies Melted . | . . . . . . Intel | -11 -10 -9 -9 -7 -6 ------- Run | Yrd Mat Mat Min Zio Pro Robot Analysis Total . | . . . . . . Derelict Logs Recovered 4 | . . . 2 2 . Drone Launches . | . . . . . . Drone Recoveries . | . . . . . . Exploration | -11 -10 -9 -9 -7 -6 ------------- Run | Yrd Mat Mat Min Zio Pro Turns Passed 2784 | 205 467 486 648 955 23 Spaces Moved 2502 | 58 428 432 618 958 8 Core 19 | 19 . . . . . Treads . | . . . . . . Legs . | . . . . . . Wheels 2483 | 39 428 432 618 958 8 Hover . | . . . . . . Flight . | . . . . . . Fastest Speed 50 | 50 80 86 86 90 90 Average Speed 87 | 70 80 89 89 90 90 Slowest Speed 95 | 80 90 95 95 90 90 Overloaded Moves . | . . . . . . Propulsion Burnouts . | . . . . . . Robots Hopped . | . . . . . . Cave-ins Triggered . | . . . . . . Exploration Rate (%) 49 | 4 82 36 90 80 3 Regions Visited 5 Branch Regions 3 Pre-discovered Areas 2 | . . . 1 1 . Known Exits Taken . | . . . . . . Unknown Exits Taken 5 | 1 1 1 1 1 . Scrap Searched 4 | . . . 1 3 . Spaces Dug . | . . . . . . Terrain Destroyed 15 | . 15 . . . . Melee . | . . . . . . Projectile . | . . . . . . AOE 15 | . 15 . . . . Terrain Rammed . | . . . . . . Walls Destroyed . | . . . . . . Machines Disabled . | . . . . . . Actions | -11 -10 -9 -9 -7 -6 --------- Run | Yrd Mat Mat Min Zio Pro Total 2930 | 222 493 479 668 1053 15 Wait 243 | 149 . . 15 79 . Move 2497 | 57 427 431 617 957 8 Hop . | . . . . . . Pick Up 44 | 10 12 9 5 8 . Fast Attach . | . . . . . . Attach 21 | 6 4 7 3 . 1 Detach . | . . . . . . Swap 13 | . 5 3 3 2 . Drop 14 | . 4 2 1 7 . Fire 96 | . 41 27 23 . 5 Melee 1 | . . . . . 1 Ram 1 | . . . 1 . . Kick . | . . . . . . Crush . | . . . . . . Escape Stasis . | . . . . . . Rewire . | . . . . . . Trap . | . . . . . . Miscellaneous . | . . . . . . Route ------- -11/Scrapyard -10/Materials (discovered 3 exits: *Mat x2 / [*Min]) -9/Materials -9/Mines (discovered 4 exits: *Mat x2 / [*Exi] / [*Zio]) -7/Zion -6/Proximity Caves History --------- Turn | Location | Event 15 | -11/Scrapyard | Discovered new exit (range 16) 206 | -11/Scrapyard | Entered Materials 248 | -10/Materials | Discovered new exit (range 16) 302 | -10/Materials | Build established: Mutant 356 | -10/Materials | Discovered new exit (range 7) 469 | -10/Materials | Repaired ECM Suite? 607 | -10/Materials | Discovered new exit (range 16) 673 | -10/Materials | Entered another Materials area 673 | -9/Materials | Evolved 2 slots: Power x1, Propulsion x1 975 | -9/Materials | Lost 5 parts (2p2n1w) 987 | -9/Materials | Discovered new exit (range 15) 1124 | -9/Materials | Core integrity fell below 50% 1159 | -9/Materials | Entered Mines 1210 | -9/Mines | Discovered new exit (range 8) 1212 | -9/Mines | Learned Materials emergency access door positions 1213 | -9/Mines | Identified exit to Materials 1318 | -9/Mines | Received a Rocket Launcher from a helpful Derelict 1336 | -9/Mines | Deemed a non-threat by the Exiles lab entrance 1337 | -9/Mines | Discovered new exit (range 5) 1490 | -9/Mines | Learned location of Storage (-7) 1614 | -9/Mines | A Derelict revealed a hidden shortcut to a safe place 1717 | -9/Mines | Assisted by bots powering up and referring to "LRC-V3" 1807 | -9/Mines | Entered Zion 1931 | -7/Zion | Found Relay Coupler [Programmer] 2076 | -7/Zion | Learned location of Warlord (-5) 2142 | -7/Zion | Imprinted 2144 | -7/Zion | Declared Zion's savior 2280 | -7/Zion | Visited the Megawrench Repair Shop 2280 | -7/Zion | Megawrench repaired 9 parts 2469 | -7/Zion | Found CR-A16's Pointy Stick 2629 | -7/Zion | Learned Factory emergency access door positions 2639 | -7/Zion | Discovered new exit (range 14) 2762 | -7/Zion | Entered Proximity Caves 2762 | -6/Proximity Caves | Accompanied by 4 allies 2779 | -6/Proximity Caves | Core integrity fell below 20% 2785 | -6/Proximity Caves | Destroyed by 80-6VA(M) with Barrage Gun Last Messages --------------- Dropped ECM Suite. Acquired Barrage Gun. Dropped Assault Rifle. Dropped Rocket Launcher. Acquired Slug Cannon. Dropped CR-A16's Pointy Stick. Acquired Ripper. LOCATION=UNKNOWN GOAL=ESCAPE Chain reaction triggered in Lgt. Nuclear Core. S-27 Virus destroyed. Chain reaction triggered in Lgt. Nuclear Core. S-27 Virus destroyed. Acquired 14 matter. Corrupted VTOL Module fries itself beyond repair. Beam Cannon severed. Hvy. Ion Engine severed. G-50 Soldier destroyed. DX-CKY(M) destroyed. Map ----- +----------------------------------------------------+ | | | ?????????????????????????????????????????????????? | | ?????????????????????????????????????????????????? | | ?????????????????????????????????????????????????? | | ?????????????????????????????????????????????????? | | ?????????????????????????????????????????????????? | | ?????????????????????????????????????????????????? | | ?????????????????????????????????????????????????? | | ?????????????????????????????????????????????????? | | ?????????????????????????????????????????????????? | | ?????????????????????????????????????????????????? | | ?????????????????????????????????????????????????? | | ?????????????????????????????????????????????????? | | ?????????????????????????????????????????????????? | | ?????????????????????????????????????????????????? | | ?????????????????????????????????????????????????? | | ???????????????????????????####??????????????????? | | ????????????????????????#### "#??????????????????? | | ????????????????????##### ;;[ #??????????????????? | | ????????????????????# #; ==########???????????? | | ?????????????????????# % #???????????? | | ?????????????????????### % #??????????? | | ???????????????????????# ;###### ??????? | | ???????????????????????# ##??????? ?????? | | ???????????????????????##*M#????????? ?????? | | ????????????????????????#@M#??????????? ??????? | | ????????????????????????#l%#????????????? ??????? | | ????????????????????????#g!#?????????????????????? | | ????????????????????????[M ?????????????????????? | | ????????????????????????%g ????????????????????? | | ????????????????????????! ???????????????????? | | ???????????????????????? #### ???????????????????? | | ??????????????????????? ????# ??????????????????? | | ??????????????????????? #????? ?????????????????? | | ??????????????????????? ??????? ????????????????? | | ??????????????????????? ??????? ????????????????? | | ?????????????????????? ???????? #???????????????? | | ??????????????????????# ????????? ???????????????? | | ??????????????????????##?????????????????????????? | | ?????????????????????????????????????????????????? | | ?????????????????????????????????????????????????? | | ?????????????????????????????????????????????????? | | ?????????????????????????????????????????????????? | | ?????????????????????????????????????????????????? | | ?????????????????????????????????????????????????? | | ?????????????????????????????????????????????????? | | ?????????????????????????????????????????????????? | | ?????????????????????????????????????????????????? | | ?????????????????????????????????????????????????? | | ?????????????????????????????????????????????????? | +----------------------------------------------------+ Best States ------------- Heat Dissipation 42 Energy Generation 23 Energy Capacity 460 Matter Stores 300 Matter Capacity 300 Sight Range 16 Terrain Scan Density 10 ECM Strength 1 Evasion (%) 50 Targeting Accuracy 8 Item Schematics ----------------- Flexi-carbon Leg | -7/Zion | Archive Imp. Trap Extractor | -7/Zion | Archive Imp. Carbon-fiber Leg | -7/Zion | Archive Cloaking Device | -7/Zion | Archive Imp. Coolant Injector | -7/Zion | Archive Lightning Gun | -7/Zion | Archive Angular Momentum Engine | -7/Zion | Archive Imp. Melee Analysis Suite | -7/Zion | Archive Imp. Core Shielding | -7/Zion | Archive Plasma Cannon | -7/Zion | Archive Drone Bay | -7/Zion | Archive Arc Projector | -7/Zion | Archive Fusion Compressor | -7/Zion | Archive Imp. Shield Generator | -7/Zion | Archive Remote Force Field | -7/Zion | Archive Robot Schematics ------------------ W-25 Informer | -7/Zion | Archive O-24 Administrator | -7/Zion | Archive M-28 Smith | -7/Zion | Archive Fabricated ------------ Nothing Alien Tech Used ----------------- None Achievements -------------- Part-time Mechanic Robot Respite The One Challenges ------------ None Game ------ Seed AlertAerolevFemtoactuators Manual? 0 Play Time 00:28:28 Cumulative 1.9 hours Start 2024.04.19 @ 20:25:18 End 2024.04.21 @ 09:42:06 Sessions 5 Manual Loads 0 Difficulty Rogue Special Mode None Game No. 7 Rogue 7 Adventurer 0 Explorer 0 Win Type - Total 0 Types 0/0/0/0/0/0/0/0/0 Lore% 5 Gallery% 8 Achievement% 8 Wizard Run 0 Options --------- Layout 1 ASCII 0 Keyboard 0 Movement Arrows Keybinds 0 Fullscreen 2 Font 32/SmallcapsGlow Map View 50x35 Zoom Use 0% Tactical HUD 0 Map Filters NONE Filters NONE Steam 1 RUN: dcf35a95-39f9-446b-be6f-fe081dccc7f2